[Event "Late-Titled-Tuesday-Blitz-April-16-2024"]
[Site "Chess.com"]
[Date "2024.04.16"]
[Round "2"]
[White "DonJuanEGenaro"]
[Black "Supelyel"]
[Result "0-1"]
[WhiteElo "1982"]
[BlackElo "2429"]
[TimeControl "180+1"]
[EndTime "14:18:13 PDT"]
[Termination "Supelyel won on time"]

1. Nf3 {[%clk 0:02:54.9]} 1... Nf6 {[%clk 0:02:58.7]} 2. d4 {[%clk 0:02:53.8]}
2... d6 {[%clk 0:02:58.7]} 3. Bf4 {[%clk 0:02:52.4]} 3... Nbd7 {[%clk 0:02:58]}
4. e3 {[%clk 0:02:52.4]} 4... Nh5 {[%clk 0:02:57.9]} 5. Bg5 {[%clk 0:02:51.2]}
5... h6 {[%clk 0:02:57.1]} 6. Bh4 {[%clk 0:02:50.3]} 6... g5 {[%clk 0:02:57.3]}
7. Nfd2 {[%clk 0:02:50.1]} 7... Ng7 {[%clk 0:02:57.4]} 8. Bg3 {[%clk 0:02:48.8]}
8... Nf5 {[%clk 0:02:57.7]} 9. Bd3 {[%clk 0:02:44.8]} 9... Nxg3 {[%clk
0:02:57.3]} 10. hxg3 {[%clk 0:02:44.6]} 10... Bg7 {[%clk 0:02:57.3]} 11. Nc3
{[%clk 0:02:37.4]} 11... c5 {[%clk 0:02:55.1]} 12. d5 {[%clk 0:02:16.3]} 12...
a6 {[%clk 0:02:16.9]} 13. a4 {[%clk 0:02:05.4]} 13... b6 {[%clk 0:02:16.8]} 14.
f4 {[%clk 0:02:00.7]} 14... Nf6 {[%clk 0:01:55.1]} 15. fxg5 {[%clk 0:01:50.9]}
15... hxg5 {[%clk 0:01:54.8]} 16. Rxh8+ {[%clk 0:01:50.2]} 16... Bxh8 {[%clk
0:01:55.4]} 17. Nde4 {[%clk 0:01:44]} 17... Ng4 {[%clk 0:01:26.1]} 18. Nf2
{[%clk 0:01:31.2]} 18... Nxe3 {[%clk 0:01:00.4]} 19. Qh5 {[%clk 0:01:28]} 19...
Bf6 {[%clk 0:00:59.3]} 20. Kd2 {[%clk 0:01:19]} 20... Nf5 {[%clk 0:00:52.9]} 21.
Nfe4 {[%clk 0:01:07.8]} 21... Ra7 {[%clk 0:00:26.9]} 22. Nxg5 {[%clk 0:01:02.8]}
22... e6 {[%clk 0:00:18.8]} 23. dxe6 {[%clk 0:00:58.1]} 23... Bxg5+ {[%clk
0:00:18.2]} 24. Ke1 {[%clk 0:00:53.9]} 24... Bxe6 {[%clk 0:00:17.1]} 25. Ne4
{[%clk 0:00:50.6]} 25... Be7 {[%clk 0:00:15.5]} 26. g4 {[%clk 0:00:48.9]} 26...
Nd4 {[%clk 0:00:15.7]} 27. Rd1 {[%clk 0:00:40.9]} 27... Kd7 {[%clk 0:00:15.7]}
28. c3 {[%clk 0:00:37.9]} 28... Nc6 {[%clk 0:00:15.3]} 29. a5 {[%clk 0:00:33.7]}
29... bxa5 {[%clk 0:00:14.9]} 30. Nxc5+ {[%clk 0:00:32.4]} 30... Kc8 {[%clk
0:00:14]} 31. Nxe6 {[%clk 0:00:31.7]} 31... fxe6 {[%clk 0:00:14.9]} 32. Qg6
{[%clk 0:00:30]} 32... Qd7 {[%clk 0:00:15.3]} 33. Bc4 {[%clk 0:00:29.6]} 33...
d5 {[%clk 0:00:15.7]} 34. Bd3 {[%clk 0:00:28.2]} 34... Ne5 {[%clk 0:00:16]} 35.
Qg8+ {[%clk 0:00:26.4]} 35... Kc7 {[%clk 0:00:15.9]} 36. Be2 {[%clk 0:00:24.9]}
36... Rb7 {[%clk 0:00:16.3]} 37. Qg7 {[%clk 0:00:22]} 37... Bd6 {[%clk
0:00:16.6]} 38. Qxd7+ {[%clk 0:00:20]} 38... Kxd7 {[%clk 0:00:17.5]} 39. Rd2
{[%clk 0:00:19.7]} 39... Ke7 {[%clk 0:00:16.9]} 40. Bxa6 {[%clk 0:00:14.5]}
40... Rb6 {[%clk 0:00:16.9]} 41. Be2 {[%clk 0:00:12.3]} 41... a4 {[%clk
0:00:17.1]} 42. Kf2 {[%clk 0:00:08.9]} 42... Bc5+ {[%clk 0:00:17.6]} 43. Kg3
{[%clk 0:00:08]} 43... Be3 {[%clk 0:00:17.9]} 44. Rd1 {[%clk 0:00:06.8]} 44...
Rxb2 {[%clk 0:00:17.7]} 45. Bf3 {[%clk 0:00:03.8]} 45... Nxf3 {[%clk 0:00:17.3]}
46. gxf3 {[%clk 0:00:04]} 46... Bd2 {[%clk 0:00:17.8]} 47. f4 {[%clk 0:00:02.4]}
47... Bxc3 {[%clk 0:00:17.4]} 48. Rh1 {[%clk 0:00:01.7]} 48... a3 {[%clk
0:00:16.7]} 49. Rh7+ {[%clk 0:00:01.3]} 49... Kd6 {[%clk 0:00:17.2]} 0-1

[Event "Late-Titled-Tuesday-Blitz-April-16-2024"]
[Site "Chess.com"]
[Date "2024.04.16"]
[Round "2"]
[White "ccccvhhhj"]
[Black "protectiago"]
[Result "1-0"]
[WhiteElo "2437"]
[BlackElo "2036"]
[TimeControl "180+1"]
[EndTime "14:18:16 PDT"]
[Termination "ccccvhhhj won on time"]

1. e4 {[%clk 0:03:00.9]} 1... e5 {[%clk 0:02:59.6]} 2. Nf3 {[%clk 0:03:00.7]}
2... Nc6 {[%clk 0:02:59]} 3. Bc4 {[%clk 0:03:01.2]} 3... Bc5 {[%clk 0:02:58.6]}
4. b4 {[%clk 0:03:01]} 4... Bxb4 {[%clk 0:02:58.4]} 5. c3 {[%clk 0:03:01.6]}
5... Ba5 {[%clk 0:02:58.8]} 6. d4 {[%clk 0:03:01.8]} 6... d6 {[%clk 0:02:58]} 7.
O-O {[%clk 0:03:02.2]} 7... Bb6 {[%clk 0:02:58.2]} 8. dxe5 {[%clk 0:02:50.6]}
8... dxe5 {[%clk 0:02:57.8]} 9. Qb3 {[%clk 0:02:48.5]} 9... Qf6 {[%clk
0:02:35.2]} 10. Bg5 {[%clk 0:02:24.3]} 10... Qg6 {[%clk 0:02:35]} 11. Nbd2
{[%clk 0:02:01.5]} 11... f6 {[%clk 0:02:29.4]} 12. Bxg8 {[%clk 0:01:50.6]} 12...
Na5 {[%clk 0:02:16.8]} 13. Qc2 {[%clk 0:01:01.2]} 13... Rxg8 {[%clk 0:01:49.4]}
14. Bh4 {[%clk 0:01:01.6]} 14... Be6 {[%clk 0:01:45.1]} 15. Nb3 {[%clk
0:00:56.4]} 15... Nc6 {[%clk 0:01:32.1]} 16. Bg3 {[%clk 0:00:55.5]} 16... O-O-O
{[%clk 0:01:29.7]} 17. a4 {[%clk 0:00:56]} 17... a5 {[%clk 0:01:26.4]} 18. Rab1
{[%clk 0:00:50.8]} 18... h5 {[%clk 0:01:21.4]} 19. Nh4 {[%clk 0:00:43.3]} 19...
Qf7 {[%clk 0:01:17.9]} 20. Nf5 {[%clk 0:00:43]} 20... g5 {[%clk 0:01:01.9]} 21.
Nh6 {[%clk 0:00:40.9]} 21... Bxb3 {[%clk 0:01:01.7]} 22. Rxb3 {[%clk 0:00:39.2]}
22... Qe6 {[%clk 0:00:49.6]} 23. Nxg8 {[%clk 0:00:38.9]} 23... h4 {[%clk
0:00:49.6]} 24. Nh6 {[%clk 0:00:38.3]} 24... hxg3 {[%clk 0:00:48.4]} 25. hxg3
{[%clk 0:00:39.2]} 25... Rh8 {[%clk 0:00:45.8]} 26. Nf5 {[%clk 0:00:37.9]} 26...
Qg8 {[%clk 0:00:38.2]} 27. Rxb6 {[%clk 0:00:25.9]} 27... cxb6 {[%clk 0:00:37.1]}
28. f3 {[%clk 0:00:26.3]} 28... Qe6 {[%clk 0:00:33.8]} 29. Qf2 {[%clk
0:00:25.2]} 29... Kc7 {[%clk 0:00:32.8]} 30. Rb1 {[%clk 0:00:25.3]} 30... Nd8
{[%clk 0:00:28.6]} 31. Ne3 {[%clk 0:00:25.5]} 31... Qf7 {[%clk 0:00:12.4]} 32.
Nd5+ {[%clk 0:00:26.4]} 32... Kb8 {[%clk 0:00:11.8]} 33. Qxb6 {[%clk 0:00:25.7]}
33... Ne6 {[%clk 0:00:11.4]} 34. Qd6+ {[%clk 0:00:22]} 34... Ka8 {[%clk
0:00:10.6]} 35. Qb6 {[%clk 0:00:15]} 35... Kb8 {[%clk 0:00:06.4]} 36. Qxa5
{[%clk 0:00:15.2]} 36... Rc8 {[%clk 0:00:04.8]} 37. Qb4 {[%clk 0:00:14.8]} 37...
Rc6 {[%clk 0:00:04.3]} 38. a5 {[%clk 0:00:14.4]} 38... Nc5 {[%clk 0:00:03.7]}
39. Qb5 {[%clk 0:00:13.7]} 39... Qe6 {[%clk 0:00:02.9]} 40. c4 {[%clk
0:00:09.7]} 40... Na6 {[%clk 0:00:02.3]} 41. Rd1 {[%clk 0:00:08.3]} 41... f5
{[%clk 0:00:01.5]} 42. exf5 {[%clk 0:00:06.4]} 42... Qxf5 {[%clk 0:00:01.7]} 43.
Ne7 {[%clk 0:00:07]} 43... Qc2 {[%clk 0:00:01.2]} 44. Nxc6+ {[%clk 0:00:07.3]}
1-0

[Event "Late-Titled-Tuesday-Blitz-April-16-2024"]
[Site "Chess.com"]
[Date "2024.04.16"]
[Round "2"]
[White "BogdanDeac"]
[Black "AlexPapasimakopoulos"]
[Result "0-1"]
[WhiteElo "2997"]
[BlackElo "2641"]
[TimeControl "180+1"]
[EndTime "14:18:17 PDT"]
[Termination "AlexPapasimakopoulos won on time"]

1. d4 {[%clk 0:03:00.9]} 1... e6 {[%clk 0:02:58.3]} 2. Nf3 {[%clk 0:03:01.1]}
2... Nf6 {[%clk 0:02:57.7]} 3. c4 {[%clk 0:03:01.3]} 3... Bb4+ {[%clk
0:02:55.8]} 4. Bd2 {[%clk 0:03:01]} 4... Qe7 {[%clk 0:02:56.1]} 5. g3 {[%clk
0:03:00.6]} 5... Nc6 {[%clk 0:02:56.6]} 6. Nc3 {[%clk 0:02:59.9]} 6... b6 {[%clk
0:02:56.7]} 7. Bg2 {[%clk 0:02:56.5]} 7... Na5 {[%clk 0:02:57.4]} 8. Ne5 {[%clk
0:02:46]} 8... Bb7 {[%clk 0:02:57.4]} 9. Bxb7 {[%clk 0:02:45.2]} 9... Nxb7
{[%clk 0:02:58.3]} 10. O-O {[%clk 0:02:44.5]} 10... O-O {[%clk 0:02:57.4]} 11.
a3 {[%clk 0:02:36.1]} 11... Bxc3 {[%clk 0:02:57.3]} 12. Bxc3 {[%clk 0:02:37]}
12... d6 {[%clk 0:02:51.1]} 13. Nd3 {[%clk 0:02:07.2]} 13... Ne4 {[%clk
0:02:48.8]} 14. Be1 {[%clk 0:02:06.8]} 14... f5 {[%clk 0:02:41]} 15. f3 {[%clk
0:02:06]} 15... Nf6 {[%clk 0:02:41.6]} 16. Bc3 {[%clk 0:02:06.2]} 16... a5
{[%clk 0:02:34.8]} 17. b4 {[%clk 0:01:57.7]} 17... Qd7 {[%clk 0:02:26.1]} 18.
Qc2 {[%clk 0:01:52.3]} 18... Qc6 {[%clk 0:02:21.4]} 19. Bb2 {[%clk 0:01:22.8]}
19... b5 {[%clk 0:02:14.3]} 20. c5 {[%clk 0:01:22.4]} 20... axb4 {[%clk
0:02:04]} 21. axb4 {[%clk 0:01:22.2]} 21... Ra4 {[%clk 0:02:02.4]} 22. Nf4
{[%clk 0:01:17.5]} 22... d5 {[%clk 0:01:57.2]} 23. Rxa4 {[%clk 0:00:56.9]} 23...
bxa4 {[%clk 0:01:56.9]} 24. Ra1 {[%clk 0:00:57.4]} 24... Ra8 {[%clk 0:01:55.8]}
25. Qd3 {[%clk 0:00:57.7]} 25... Nd8 {[%clk 0:01:41.7]} 26. b5 {[%clk
0:00:53.2]} 26... Qb7 {[%clk 0:01:41.7]} 27. Ba3 {[%clk 0:00:51.1]} 27... g5
{[%clk 0:01:30.5]} 28. Nh3 {[%clk 0:00:48.3]} 28... Nf7 {[%clk 0:01:28.2]} 29.
Rb1 {[%clk 0:00:44.1]} 29... h6 {[%clk 0:01:25.8]} 30. Nf2 {[%clk 0:00:42.1]}
30... Kg7 {[%clk 0:01:16.2]} 31. Nd1 {[%clk 0:00:38.4]} 31... Qc8 {[%clk
0:01:09.4]} 32. Nc3 {[%clk 0:00:36.1]} 32... h5 {[%clk 0:01:05.3]} 33. e4 {[%clk
0:00:35.1]} 33... h4 {[%clk 0:01:02]} 34. gxh4 {[%clk 0:00:27.6]} 34... g4
{[%clk 0:00:59.8]} 35. e5 {[%clk 0:00:22.4]} 35... Nh5 {[%clk 0:00:56.6]} 36.
fxg4 {[%clk 0:00:22.7]} 36... fxg4 {[%clk 0:00:57.4]} 37. Qe2 {[%clk 0:00:07]}
37... Nh6 {[%clk 0:00:57.3]} 38. Bc1 {[%clk 0:00:06.9]} 38... Qg8 {[%clk
0:00:48.9]} 39. Qe3 {[%clk 0:00:03.9]} 39... Qh7 {[%clk 0:00:46.6]} 40. Qxh6+
{[%clk 0:00:02.8]} 40... Qxh6 {[%clk 0:00:47.5]} 41. Bxh6+ {[%clk 0:00:03.1]}
41... Kxh6 {[%clk 0:00:48.4]} 42. Ra1 {[%clk 0:00:03.5]} 42... a3 {[%clk
0:00:47.9]} 43. b6 {[%clk 0:00:03.5]} 43... cxb6 {[%clk 0:00:48.1]} 44. cxb6
{[%clk 0:00:04.3]} 44... Nf4 {[%clk 0:00:37.8]} 45. Kf2 {[%clk 0:00:04.3]} 45...
Kh5 {[%clk 0:00:37]} 46. Kg3 {[%clk 0:00:02.6]} 46... Ng6 {[%clk 0:00:27.1]} 47.
h3 {[%clk 0:00:02.3]} 47... gxh3 {[%clk 0:00:26.3]} 48. Kxh3 {[%clk 0:00:02.6]}
48... Nxh4 {[%clk 0:00:24.9]} 49. Rb1 {[%clk 0:00:02.6]} 49... Nf5 {[%clk
0:00:22.9]} 50. b7 {[%clk 0:00:02]} 50... Rb8 {[%clk 0:00:23.3]} 51. Rb4 {[%clk
0:00:01.1]} 51... Kg5 {[%clk 0:00:21]} 0-1

[Event "Late-Titled-Tuesday-Blitz-April-16-2024"]
[Site "Chess.com"]
[Date "2024.04.16"]
[Round "2"]
[White "andrew-blr"]
[Black "Kimkibo"]
[Result "1-0"]
[WhiteElo "2653"]
[BlackElo "2380"]
[TimeControl "180+1"]
[EndTime "14:18:17 PDT"]
[Termination "andrew-blr won by resignation"]

1. d4 {[%clk 0:03:00.9]} 1... d5 {[%clk 0:02:50]} 2. c4 {[%clk 0:03:00.4]} 2...
e6 {[%clk 0:02:41.4]} 3. Nc3 {[%clk 0:02:59.8]} 3... Nf6 {[%clk 0:02:30.7]} 4.
cxd5 {[%clk 0:02:58.2]} 4... exd5 {[%clk 0:02:31.6]} 5. Bg5 {[%clk 0:02:58]}
5... Be7 {[%clk 0:02:32]} 6. e3 {[%clk 0:02:57.8]} 6... O-O {[%clk 0:02:32]} 7.
Bd3 {[%clk 0:02:57]} 7... c6 {[%clk 0:02:32.2]} 8. Nge2 {[%clk 0:02:55.4]} 8...
Nbd7 {[%clk 0:02:31.3]} 9. Qc2 {[%clk 0:02:54.9]} 9... Re8 {[%clk 0:02:30.6]}
10. O-O {[%clk 0:02:54.1]} 10... Nf8 {[%clk 0:02:30.3]} 11. f3 {[%clk
0:02:53.9]} 11... g6 {[%clk 0:02:25]} 12. Rae1 {[%clk 0:02:38.6]} 12... Ne6
{[%clk 0:02:24.5]} 13. Bh4 {[%clk 0:02:38]} 13... Ng7 {[%clk 0:02:21.8]} 14. Kh1
{[%clk 0:02:35.6]} 14... Nf5 {[%clk 0:02:17.3]} 15. Bf2 {[%clk 0:02:34.6]} 15...
Bb4 {[%clk 0:02:14.2]} 16. Nc1 {[%clk 0:02:24]} 16... Bd7 {[%clk 0:02:01.7]} 17.
a3 {[%clk 0:02:17.4]} 17... Bf8 {[%clk 0:01:57.8]} 18. e4 {[%clk 0:02:14]} 18...
Ng7 {[%clk 0:01:56.1]} 19. e5 {[%clk 0:02:13.2]} 19... Nfh5 {[%clk 0:01:55.6]}
20. N1e2 {[%clk 0:01:55.5]} 20... Ne6 {[%clk 0:01:52.3]} 21. g3 {[%clk
0:01:42.9]} 21... c5 {[%clk 0:01:46.5]} 22. dxc5 {[%clk 0:01:40.1]} 22... Bxc5
{[%clk 0:01:43.5]} 23. f4 {[%clk 0:01:38.4]} 23... Bc6 {[%clk 0:01:41.8]} 24.
Kg1 {[%clk 0:01:33.3]} 24... Rc8 {[%clk 0:01:35.1]} 25. Bxc5 {[%clk 0:01:24.5]}
25... Nxc5 {[%clk 0:01:34.8]} 26. Nd4 {[%clk 0:01:25.1]} 26... Ne6 {[%clk
0:01:28.7]} 27. Qf2 {[%clk 0:01:23.4]} 27... Qb6 {[%clk 0:01:25.3]} 28. Nf3
{[%clk 0:01:11.6]} 28... d4 {[%clk 0:01:16.6]} 29. Ne4 {[%clk 0:01:09.6]} 29...
Nhxf4 {[%clk 0:01:13.7]} 30. gxf4 {[%clk 0:01:04.7]} 30... Nxf4 {[%clk
0:01:14.6]} 31. Nf6+ {[%clk 0:00:59.2]} 31... Kf8 {[%clk 0:00:58.8]} 32. Qd2
{[%clk 0:00:53.2]} 32... Nxd3 {[%clk 0:00:41.6]} 33. Qxd3 {[%clk 0:00:48.7]}
33... Re7 {[%clk 0:00:38.3]} 34. Nxh7+ {[%clk 0:00:32.9]} 34... Kg7 {[%clk
0:00:37.1]} 35. Nfg5 {[%clk 0:00:30.5]} 35... Qxb2 {[%clk 0:00:35.1]} 36. Rf2
{[%clk 0:00:28.1]} 36... Qc3 {[%clk 0:00:34.7]} 37. Qf1 {[%clk 0:00:24.1]} 37...
Bd5 {[%clk 0:00:30]} 38. e6 {[%clk 0:00:23.2]} 38... Bc4 {[%clk 0:00:10.5]} 39.
Rxf7+ {[%clk 0:00:22.4]} 39... Kh6 {[%clk 0:00:10.5]} 40. Qf2 {[%clk 0:00:21.8]}
40... Rxf7 {[%clk 0:00:03.5]} 41. exf7 {[%clk 0:00:22.7]} 41... Kg7 {[%clk
0:00:02.4]} 42. Qf6+ {[%clk 0:00:20.4]} 42... Kh6 {[%clk 0:00:02.3]} 43. f8=Q+
{[%clk 0:00:20.8]} 43... Rxf8 {[%clk 0:00:02.1]} 44. Qxf8+ {[%clk 0:00:21.1]}
44... Kh5 {[%clk 0:00:03]} 45. Qf3+ {[%clk 0:00:21.3]} 45... Qxf3 {[%clk
0:00:03.4]} 46. Nxf3 {[%clk 0:00:21.1]} 1-0

[Event "Late-Titled-Tuesday-Blitz-April-16-2024"]
[Site "Chess.com"]
[Date "2024.04.16"]
[Round "2"]
[White "BenchGM"]
[Black "GMMikhailKazakov"]
[Result "0-1"]
[WhiteElo "2303"]
[BlackElo "2518"]
[TimeControl "180+1"]
[EndTime "14:18:19 PDT"]
[Termination "GMMikhailKazakov won by checkmate"]

1. e4 {[%clk 0:03:00]} 1... e5 {[%clk 0:02:49.1]} 2. Nf3 {[%clk 0:02:59.9]} 2...
Nc6 {[%clk 0:02:48.2]} 3. Bb5 {[%clk 0:03:00]} 3... Nf6 {[%clk 0:02:46.4]} 4. d3
{[%clk 0:02:56.9]} 4... d6 {[%clk 0:02:44.3]} 5. O-O {[%clk 0:02:46.5]} 5... Be7
{[%clk 0:02:43.8]} 6. c3 {[%clk 0:02:36.8]} 6... O-O {[%clk 0:02:42.3]} 7. h3
{[%clk 0:02:35.4]} 7... Bd7 {[%clk 0:02:36.9]} 8. Re1 {[%clk 0:02:22.4]} 8...
Qe8 {[%clk 0:02:33]} 9. Nbd2 {[%clk 0:02:19.5]} 9... Bd8 {[%clk 0:02:25.9]} 10.
Nf1 {[%clk 0:02:16.3]} 10... Ne7 {[%clk 0:02:22]} 11. Bc4 {[%clk 0:01:55.4]}
11... Ng6 {[%clk 0:02:18.2]} 12. Bg5 {[%clk 0:01:31.6]} 12... h6 {[%clk
0:02:11.2]} 13. Bd2 {[%clk 0:01:27.5]} 13... c6 {[%clk 0:02:09.4]} 14. a4 {[%clk
0:01:16.3]} 14... a5 {[%clk 0:01:52.2]} 15. N3h2 {[%clk 0:01:13.8]} 15... Be6
{[%clk 0:01:34.1]} 16. Bxe6 {[%clk 0:01:07.4]} 16... fxe6 {[%clk 0:01:34.2]} 17.
Ng3 {[%clk 0:01:04.8]} 17... Qf7 {[%clk 0:01:27.5]} 18. Be3 {[%clk 0:00:54.9]}
18... Nf4 {[%clk 0:01:07.2]} 19. d4 {[%clk 0:00:46]} 19... Ng6 {[%clk
0:00:59.3]} 20. Ng4 {[%clk 0:00:43.1]} 20... Nxg4 {[%clk 0:00:55.4]} 21. Qxg4
{[%clk 0:00:42.5]} 21... Bb6 {[%clk 0:00:53.2]} 22. Rad1 {[%clk 0:00:38]} 22...
exd4 {[%clk 0:00:49.2]} 23. cxd4 {[%clk 0:00:35.6]} 23... e5 {[%clk 0:00:47.4]}
24. Nf5 {[%clk 0:00:32.6]} 24... Rad8 {[%clk 0:00:38.2]} 25. Bxh6 {[%clk
0:00:31.5]} 25... Bxd4 {[%clk 0:00:27.3]} 26. Rxd4 {[%clk 0:00:30.2]} 26... exd4
{[%clk 0:00:25.4]} 27. Bxg7 {[%clk 0:00:30.4]} 27... Rfe8 {[%clk 0:00:17.2]} 28.
Bxd4 {[%clk 0:00:27.2]} 28... Qh7 {[%clk 0:00:12]} 29. h4 {[%clk 0:00:21.7]}
29... Kf7 {[%clk 0:00:11.2]} 30. h5 {[%clk 0:00:18.9]} 30... Ne5 {[%clk
0:00:11.3]} 31. Bxe5 {[%clk 0:00:17.7]} 31... dxe5 {[%clk 0:00:11.3]} 32. Qe2
{[%clk 0:00:17]} 32... Kf8 {[%clk 0:00:05.7]} 33. h6 {[%clk 0:00:14.8]} 33...
Qg6 {[%clk 0:00:05.3]} 34. Qc4 {[%clk 0:00:13.4]} 34... Qe6 {[%clk 0:00:02.9]}
35. Qc5+ {[%clk 0:00:11.9]} 35... Kg8 {[%clk 0:00:02.7]} 36. Re3 {[%clk
0:00:11.1]} 36... Kh7 {[%clk 0:00:02.8]} 37. Rg3 {[%clk 0:00:10.4]} 37... Rg8
{[%clk 0:00:03]} 38. Rg7+ {[%clk 0:00:08.8]} 38... Rxg7 {[%clk 0:00:03]} 39.
hxg7 {[%clk 0:00:09.2]} 39... Qg6 {[%clk 0:00:02.8]} 40. Qf8 {[%clk 0:00:08.6]}
40... Rd1+ {[%clk 0:00:02.2]} 41. Kh2 {[%clk 0:00:08.1]} 41... Qh5+ {[%clk
0:00:02.7]} 42. Kg3 {[%clk 0:00:07.8]} 42... Qg5+ {[%clk 0:00:01.7]} 43. Kf3
{[%clk 0:00:07.9]} 43... Qf4+ {[%clk 0:00:01.8]} 44. Ke2 {[%clk 0:00:07.2]}
44... Rd2+ {[%clk 0:00:02.6]} 45. Ke1 {[%clk 0:00:03.6]} 45... Qxf2# {[%clk
0:00:03.5]} 0-1

[Event "Late-Titled-Tuesday-Blitz-April-16-2024"]
[Site "Chess.com"]
[Date "2024.04.16"]
[Round "2"]
[White "PawnEatingZombie"]
[Black "fviana"]
[Result "0-1"]
[WhiteElo "2237"]
[BlackElo "2487"]
[TimeControl "180+1"]
[EndTime "14:18:19 PDT"]
[Termination "fviana won on time"]

1. e4 {[%clk 0:03:00.9]} 1... c5 {[%clk 0:02:59.6]} 2. c3 {[%clk 0:03:00.6]}
2... Nf6 {[%clk 0:02:59.4]} 3. e5 {[%clk 0:03:00.8]} 3... Nd5 {[%clk 0:02:59.8]}
4. Nf3 {[%clk 0:03:01.4]} 4... d6 {[%clk 0:02:58.3]} 5. d4 {[%clk 0:03:00.3]}
5... cxd4 {[%clk 0:02:57.9]} 6. cxd4 {[%clk 0:03:01.2]} 6... e6 {[%clk
0:02:58.1]} 7. Bc4 {[%clk 0:02:59.7]} 7... Nb6 {[%clk 0:02:53.5]} 8. Bd3 {[%clk
0:02:58.2]} 8... Nc6 {[%clk 0:02:53.7]} 9. O-O {[%clk 0:02:56.8]} 9... Be7
{[%clk 0:02:53.8]} 10. Qe2 {[%clk 0:02:51.6]} 10... Nb4 {[%clk 0:02:35.2]} 11.
Be4 {[%clk 0:02:31.5]} 11... d5 {[%clk 0:02:34.1]} 12. Bc2 {[%clk 0:02:31.4]}
12... Nxc2 {[%clk 0:02:34.2]} 13. Qxc2 {[%clk 0:02:31.3]} 13... O-O {[%clk
0:02:33.8]} 14. Nc3 {[%clk 0:02:25.7]} 14... Bd7 {[%clk 0:02:32.8]} 15. Re1
{[%clk 0:02:14.8]} 15... Rc8 {[%clk 0:02:32.3]} 16. a3 {[%clk 0:02:01.6]} 16...
Na4 {[%clk 0:02:28.7]} 17. Bd2 {[%clk 0:01:58]} 17... Qb6 {[%clk 0:02:25.3]} 18.
Nxa4 {[%clk 0:01:34.7]} 18... Rxc2 {[%clk 0:02:24.5]} 19. Nxb6 {[%clk
0:01:34.4]} 19... axb6 {[%clk 0:02:24.6]} 20. Bc3 {[%clk 0:01:34.3]} 20... Rc8
{[%clk 0:02:20.1]} 21. Re3 {[%clk 0:01:27.7]} 21... Bb5 {[%clk 0:02:10.2]} 22.
Ne1 {[%clk 0:01:13.9]} 22... Re2 {[%clk 0:02:08.1]} 23. Rxe2 {[%clk 0:01:14.1]}
23... Bxe2 {[%clk 0:02:09]} 24. f3 {[%clk 0:01:14.6]} 24... Bc4 {[%clk
0:01:52.3]} 25. Kf2 {[%clk 0:01:14.2]} 25... b5 {[%clk 0:01:51.4]} 26. Ke3
{[%clk 0:01:12.2]} 26... Ra8 {[%clk 0:01:48.5]} 27. Rc1 {[%clk 0:01:00.9]} 27...
g5 {[%clk 0:01:37.5]} 28. Nd3 {[%clk 0:00:57.7]} 28... h5 {[%clk 0:01:36.1]} 29.
g3 {[%clk 0:00:55.3]} 29... Kh7 {[%clk 0:01:35.8]} 30. Bb4 {[%clk 0:00:45.2]}
30... Bd8 {[%clk 0:01:32.8]} 31. Nc5 {[%clk 0:00:41.4]} 31... b6 {[%clk
0:01:32.1]} 32. Nd7 {[%clk 0:00:36.7]} 32... Ra7 {[%clk 0:01:30.1]} 33. Nf6+
{[%clk 0:00:36.3]} 33... Kg6 {[%clk 0:01:29.2]} 34. Ne8 {[%clk 0:00:33.6]} 34...
Rd7 {[%clk 0:01:16.7]} 35. f4 {[%clk 0:00:33.4]} 35... h4 {[%clk 0:01:13.4]} 36.
Rc2 {[%clk 0:00:16.9]} 36... Kf5 {[%clk 0:01:09.8]} 37. Rf2 {[%clk 0:00:15.3]}
37... hxg3 {[%clk 0:01:08.4]} 38. hxg3 {[%clk 0:00:15.1]} 38... gxf4+ {[%clk
0:01:08.7]} 39. Rxf4+ {[%clk 0:00:14.7]} 39... Kg6 {[%clk 0:01:08.4]} 40. Nf6
{[%clk 0:00:14.2]} 40... Ra7 {[%clk 0:01:06.5]} 41. Rg4+ {[%clk 0:00:13.5]}
41... Kf5 {[%clk 0:01:05.6]} 42. Rf4+ {[%clk 0:00:13.6]} 42... Kg6 {[%clk
0:01:06]} 43. Rg4+ {[%clk 0:00:11]} 43... Kh6 {[%clk 0:01:06]} 44. Rg8 {[%clk
0:00:10.4]} 44... Bxf6 {[%clk 0:01:02.5]} 45. exf6 {[%clk 0:00:10.2]} 45... Kh7
{[%clk 0:00:47.3]} 46. Rg7+ {[%clk 0:00:09.7]} 46... Kh8 {[%clk 0:00:47.4]} 47.
Kf4 {[%clk 0:00:10.3]} 47... Ba2 {[%clk 0:00:46.9]} 48. Ke5 {[%clk 0:00:09.8]}
48... Bb1 {[%clk 0:00:46.6]} 49. g4 {[%clk 0:00:08.6]} 49... Bg6 {[%clk
0:00:33]} 50. Rxg6 {[%clk 0:00:07.5]} 50... fxg6 {[%clk 0:00:33]} 51. Kxe6
{[%clk 0:00:07.4]} 51... Kg8 {[%clk 0:00:33.7]} 52. f7+ {[%clk 0:00:07]} 52...
Rxf7 {[%clk 0:00:33.5]} 53. Kxd5 {[%clk 0:00:06.7]} 53... Rf4 {[%clk 0:00:33]}
54. g5 {[%clk 0:00:04.1]} 54... Rf5+ {[%clk 0:00:33.4]} 55. Kc6 {[%clk
0:00:04.3]} 55... Rxg5 {[%clk 0:00:34.3]} 56. Kxb6 {[%clk 0:00:04.7]} 56... Rd5
{[%clk 0:00:28.4]} 57. b3 {[%clk 0:00:03.2]} 57... Rxd4 {[%clk 0:00:27.6]} 58.
Kxb5 {[%clk 0:00:03.2]} 58... g5 {[%clk 0:00:27.9]} 0-1